fUSD/lending_fUSD_20260531
["ID","MTS","AMOUNT","RATE_DAILY","PERIOD"]
[423532222,1780198232000,-343.32323318,9.788e-05,2]
[423532254,1780198238000,-314.58090662,9.186e-05,2]
[423532248,1780198238000,-395.24465621,9.186e-05,2]
[423532249,1780198238000,-104.75534379,9.186e-05,2]
[423532251,1780198238000,-500.0,9.186e-05,2]
[423532252,1780198238000,-500.0,9.186e-05,2]
[423532250,1780198238000,-500.0,9.186e-05,2]
[423532253,1780198238000,-500.0,9.186e-05,2]
[423532258,1780198238000,-500.0,9.186e-05,2]
[423532255,1780198238000,-206.96790744,9.186e-05,2]
[423532262,1780198238000,-229.09818281,9.896e-05,2]
[423532259,1780198238000,-260696.35908904,9.894e-05,2]
[423532261,1780198238000,-297.917,9.896e-05,2]
[423532260,1780198238000,-150.0,9.894e-05,2]
[423532257,1780198238000,-500.0,9.186e-05,2]
[423532264,1780198238000,-2000.0,9.944e-05,2]
[423532263,1780198238000,-188.16,9.944e-05,2]
[423532266,1780198238000,-188.16,9.998e-05,2]
[423532265,1780198238000,-250.0,9.986e-05,2]
[423532256,1780198238000,-293.03209256,9.186e-05,2]
[423532312,1780198239000,-150.0,0.00010959,2]
[423532313,1780198239000,-2000.0,0.00011049,2]
[423532309,1780198239000,-4995.0,0.0001085,2]
[423532308,1780198239000,-4995.0,0.0001085,2]
[423532304,1780198239000,-1680.0,0.00010764,2]
[423532302,1780198239000,-4995.0,0.0001075,2]
[423532307,1780198239000,-255.0,0.00010765,2]
[423532306,1780198239000,-420.0,0.00010765,2]
[423532310,1780198239000,-151.0,0.00010897,2]
[423532303,1780198239000,-188.16,0.00010753,2]
[423532301,1780198239000,-4995.0,0.000107,2]
[423532305,1780198239000,-480.0,0.00010765,2]
[423532311,1780198239000,-150.0,0.00010959,2]
[423532314,1780198239000,-1037.00930548,0.00011099,2]
[423532317,1780198239000,-7042.79714551,0.00011099,2]
[423532318,1780198239000,-7042.79714544,0.00011099,2]
[423532322,1780198239000,-167.71,0.00011364,2]
[423532316,1780198239000,-1037.00930543,0.00011099,2]
[423532319,1780198239000,-7042.79714544,0.00011099,2]
[423532325,1780198239000,-720.0,0.0001184,2]
[423532320,1780198239000,-250.0,0.00011322,2]
[423532321,1780198239000,-320.0,0.00011348,2]
[423532323,1780198239000,-1037.00930543,0.00011497,2]
[423532324,1780198239000,-7042.79714544,0.00011497,2]
[423532333,1780198239000,-1439.58,0.00012366,2]
[423532295,1780198239000,-4995.0,0.000106,2]
[423532315,1780198239000,-1037.00930543,0.00011099,2]
[423532292,1780198239000,-188.16,0.00010591,2]
[423532272,1780198239000,-188.16,0.00010106,2]
[423532294,1780198239000,-209.17060647,0.00010591,2]
[423532274,1780198239000,-180.75711372,0.00010123,2]
[423532270,1780198239000,-500.0,0.0001,2]
[423532267,1780198239000,-180.75711372,0.0001,2]
[423532273,1780198239000,-398.65839873,0.00010123,2]
[423532271,1780198239000,-188.16,0.00010052,2]
[423532268,1780198239000,-4176.1831,0.0001,2]
[423532329,1780198239000,-1037.00930543,0.00012064,2]
[423532269,1780198239000,-26740.7086,0.0001,2]
[423532277,1780198239000,-188.16,0.0001016,2]
[423532275,1780198239000,-150.0,0.00010152,2]
[423532282,1780198239000,-2000.0,0.000103,2]
[423532278,1780198239000,-180.75711372,0.000102,2]
[423532276,1780198239000,-2662.77813495,0.00010152,2]
[423532280,1780198239000,-188.16,0.00010214,2]
[423532279,1780198239000,-320.0,0.00010213,2]
[423532285,1780198239000,-188.16,0.00010429,2]
[423532283,1780198239000,-188.16,0.00010322,2]
[423532284,1780198239000,-188.16,0.00010375,2]
[423532281,1780198239000,-188.16,0.00010268,2]
[423532288,1780198239000,-4995.0,0.000105,2]
[423532286,1780198239000,-4995.0,0.0001045,2]
[423532290,1780198239000,-188.16,0.00010537,2]
[423532287,1780198239000,-188.16,0.00010483,2]
[423532293,1780198239000,-215.61611719,0.00010591,2]
[423532299,1780198239000,-188.16,0.00010699,2]
[423532291,1780198239000,-4995.0,0.0001055,2]
[423532297,1780198239000,-4995.0,0.0001065,2]
[423532296,1780198239000,-188.16,0.00010645,2]
[423532327,1780198239000,-150.0,0.00011841,2]
[423532326,1780198239000,-587.0,0.00011841,2]
[423532335,1780198239000,-1037.00930543,0.00012632,2]
[423532372,1780198239000,-550.83,0.00013698,2]
[423532361,1780198239000,-500.0,0.00013698,2]
[423532365,1780198239000,-500.0,0.00013698,2]
[423532363,1780198239000,-500.0,0.00013698,2]
[423532368,1780198239000,-550.83,0.00013698,2]
[423532369,1780198239000,-550.83,0.00013698,2]
[423532367,1780198239000,-500.0,0.00013698,2]
[423532364,1780198239000,-500.0,0.00013698,2]
[423532370,1780198239000,-550.83,0.00013698,2]
[423532371,1780198239000,-550.83,0.00013698,2]
[423532366,1780198239000,-500.0,0.00013698,2]
[423532374,1780198239000,-550.83,0.00013698,2]
[423532380,1780198239000,-500.0,0.00013698,2]
[423532384,1780198239000,-548.77,0.00013698,2]
[423532379,1780198239000,-500.0,0.00013698,2]
[423532375,1780198239000,-550.83,0.00013698,2]
[423532376,1780198239000,-500.0,0.00013698,2]
[423532378,1780198239000,-500.0,0.00013698,2]
[423532377,1780198239000,-500.0,0.00013698,2]
[423532382,1780198239000,-548.77,0.00013698,2]
[423532386,1780198239000,-548.77,0.00013698,2]
[423532385,1780198239000,-548.77,0.00013698,2]
[423532334,1780198239000,-320.0,0.00012483,2]
[423532383,1780198239000,-548.77,0.00013698,2]
[423532388,1780198239000,-548.77,0.00013698,2]
[423532389,1780198239000,-548.77,0.00013698,2]
[423532387,1780198239000,-548.77,0.00013698,2]
[423532373,1780198239000,-550.83,0.00013698,2]
[423532362,1780198239000,-470.0,0.00013698,2]
[423532381,1780198239000,-304.15973657,0.00013698,2]
[423532358,1780198239000,-500.0,0.00013698,2]
[423532331,1780198239000,-2000.0,0.00012154,2]
[423532356,1780198239000,-500.0,0.00013698,2]
[423532332,1780198239000,-437.28,0.00012329,2]
[423532330,1780198239000,-7042.79714544,0.00012064,2]
[423532336,1780198239000,-7042.79714544,0.00012632,2]
[423532337,1780198239000,-1439.58,0.00012667,2]
[423532344,1780198239000,-1439.58,0.00013271,2]
[423532339,1780198239000,-174.0,0.00013025,2]
[423532338,1780198239000,-1439.58,0.00012969,2]
[423532345,1780198239000,-177.567586,0.00013425,2]
[423532347,1780198239000,-150.0,0.00013488,2]
[423532346,1780198239000,-527.696198,0.00013425,2]
[423532340,1780198239000,-1037.00930543,0.00013199,2]
[423532328,1780198239000,-1439.58,0.00012064,2]
[423532341,1780198239000,-7042.79714544,0.00013199,2]
[423532348,1780198239000,-150.0,0.00013488,2]
[423532350,1780198239000,-150.0,0.00013488,2]
[423532351,1780198239000,-150.0,0.00013488,2]
[423532353,1780198239000,-320.0,0.00013618,2]
[423532359,1780198239000,-500.0,0.00013698,2]
[423532352,1780198239000,-150.0,0.00013581,2]
[423532360,1780198239000,-500.0,0.00013698,2]
[423532355,1780198239000,-500.0,0.00013698,2]
[423532354,1780198239000,-150.0,0.00013675,2]
[423532357,1780198239000,-500.0,0.00013698,2]
[423532343,1780198239000,-2000.0,0.00013259,2]
[423532342,1780198239000,-167.71,0.00013239,2]
[423532349,1780198239000,-150.0,0.00013488,2]
[423532425,1780198240000,-358.70943532,0.00013699,2]
[423532416,1780198240000,-500.0,0.00013699,2]
[423532413,1780198240000,-500.0,0.00013699,2]
[423532419,1780198240000,-500.0,0.00013699,2]
[423532423,1780198240000,-500.0,0.00013699,2]
[423532422,1780198240000,-500.0,0.00013699,2]
[423532427,1780198240000,-500.0,0.00013699,2]
[423532431,1780198240000,-500.0,0.00013699,2]
[423532429,1780198240000,-500.0,0.00013699,2]
[423532420,1780198240000,-500.0,0.00013699,2]
[423532434,1780198240000,-150.0,0.00013702,2]
[423532426,1780198240000,-500.0,0.00013699,2]
[423532430,1780198240000,-500.0,0.00013699,2]
[423532432,1780198240000,-500.0,0.00013699,2]
[423532428,1780198240000,-500.0,0.00013699,2]
[423532437,1780198240000,-150.0,0.00013769,2]
[423532440,1780198240000,-150.0,0.00013916,2]
[423532444,1780198240000,-150.0,0.0001405,2]
[423532433,1780198240000,-500.0,0.00013699,2]
[423532435,1780198240000,-1037.00930543,0.00013766,2]
[423532438,1780198240000,-166.66,0.00013836,2]
[423532417,1780198240000,-500.0,0.00013699,2]
[423532424,1780198240000,-500.0,0.00013699,2]
[423532421,1780198240000,-500.0,0.00013699,2]
[423532401,1780198240000,-500.0,0.00013699,2]
[423532415,1780198240000,-500.0,0.00013699,2]
[423532436,1780198240000,-7042.79714544,0.00013766,2]
[423532398,1780198240000,-500.0,0.00013699,2]
[423532390,1780198240000,-548.77,0.00013698,2]
[423532391,1780198240000,-166.66,0.00013699,2]
[423532394,1780198240000,-500.0,0.00013699,2]
[423532395,1780198240000,-500.0,0.00013699,2]
[423532396,1780198240000,-500.0,0.00013699,2]
[423532397,1780198240000,-500.0,0.00013699,2]
[423532392,1780198240000,-200.0,0.00013699,2]
[423532393,1780198240000,-500.0,0.00013699,2]
[423532399,1780198240000,-500.0,0.00013699,2]
[423532404,1780198240000,-500.0,0.00013699,2]
[423532400,1780198240000,-500.0,0.00013699,2]
[423532402,1780198240000,-500.0,0.00013699,2]
[423532403,1780198240000,-500.0,0.00013699,2]
[423532405,1780198240000,-500.0,0.00013699,2]
[423532406,1780198240000,-500.0,0.00013699,2]
[423532409,1780198240000,-500.0,0.00013699,2]
[423532410,1780198240000,-500.0,0.00013699,2]
[423532407,1780198240000,-500.0,0.00013699,2]
[423532412,1780198240000,-500.0,0.00013699,2]
[423532411,1780198240000,-500.0,0.00013699,2]
[423532414,1780198240000,-500.0,0.00013699,2]
[423532418,1780198240000,-500.0,0.00013699,2]
[423532439,1780198240000,-150.0,0.00013862,2]
[423532408,1780198240000,-500.0,0.00013699,2]
[423532441,1780198240000,-150.0,0.00013956,2]
[423532475,1780198240000,-150.0,0.00014986,2]
[423532481,1780198240000,-550.83,0.00014999,2]
[423532471,1780198240000,-4995.0,0.0001495,2]
[423532478,1780198240000,-550.83,0.00014999,2]
[423532474,1780198240000,-150.0,0.00014986,2]
[423532472,1780198240000,-2036.54,0.0001495,2]
[423532473,1780198240000,-4073.08,0.0001495,2]
[423532470,1780198240000,-420.16907782,0.000149,2]
[423532476,1780198240000,-153.77401671,0.00014986,2]
[423532477,1780198240000,-150.0,0.00014986,2]
[423532479,1780198240000,-550.83,0.00014999,2]
[423532480,1780198240000,-550.83,0.00014999,2]
[423532485,1780198240000,-300.0,0.00014999,2]
[423532489,1780198240000,-701.34009974,0.00015,14]
[423532486,1780198240000,-308.12090886,0.00014999,2]
[423532488,1780198240000,-2079.52275691,0.00015,2]
[423532492,1780198240000,-2116332.69365611,0.00015,2]
[423532487,1780198240000,-1689447.066091,0.00015,2]
[423532490,1780198240000,-432.1,0.00015,2]
[423532483,1780198240000,-550.83,0.00014999,2]
[423532491,1780198240000,-8094.61800012,0.00015,2]
[423532493,1780198240000,-5080.1344845,0.00015,2]
[423532443,1780198240000,-250.0,0.00014,2]
[423532482,1780198240000,-550.83,0.00014999,2]
[423532467,1780198240000,-1669.00052443,0.000149,2]
[423532484,1780198240000,-550.83,0.00014999,2]
[423532466,1780198240000,-204.34353215,0.000149,2]
[423532445,1780198240000,-166.66,0.0001411,2]
[423532451,1780198240000,-150.0,0.00014331,2]
[423532446,1780198240000,-150.0,0.0001413,2]
[423532447,1780198240000,-150.0,0.00014143,2]
[423532448,1780198240000,-150.0,0.00014237,2]
[423532454,1780198240000,-166.66,0.00014384,2]
[423532455,1780198240000,-150.0,0.00014424,2]
[423532456,1780198240000,-150.0,0.00014518,2]
[423532452,1780198240000,-1037.00930543,0.00014333,2]
[423532453,1780198240000,-150.0,0.00014344,2]
[423532450,1780198240000,-166.66,0.00014247,2]
[423532442,1780198240000,-166.66,0.00013973,2]
[423532458,1780198240000,-150.0,0.00014558,2]
[423532459,1780198240000,-150.0,0.00014612,2]
[423532457,1780198240000,-789.37,0.00014553,2]
[423532460,1780198240000,-150.0,0.00014705,2]
[423532468,1780198240000,-17671.02185072,0.000149,2]
[423532469,1780198240000,-1037.00930543,0.000149,2]
[423532462,1780198240000,-150.0,0.00014799,2]
[423532461,1780198240000,-150.0,0.00014772,2]
[423532463,1780198240000,-398.65839873,0.00014812,2]
[423532465,1780198240000,-150.0,0.00014893,2]
[423532449,1780198240000,-150.0,0.00014237,2]
[423532464,1780198240000,-550.83,0.00014856,2]
[423532494,1780198241000,-478.15704316,0.00015,2]
[423532495,1780198241000,-707.47094749,0.00014333,2]
[423532496,1780198241000,-418.59089225,0.00014333,2]
[423532516,1780198246000,-3191.70325238,0.00014333,2]
[423532601,1780198323000,176.75869071,0.00027,120]
[423532607,1780198383000,176.75,0.000275,120]
[423532608,1780198436000,500.0,9.8e-05,3]
[423532609,1780198437000,3288.701227,0.0002352,120]
[423532610,1780198438000,1000.0,9.9e-05,3]
[423532611,1780198441000,1500.0,0.0001,3]
[423532612,1780198462000,13405.662845,0.00023075,120]
[423532613,1780198472000,4347.840246,0.00023075,120]
[423532614,1780198496000,1200.0,9.8e-05,3]
[423532615,1780198498000,2400.0,9.9e-05,3]
[423532616,1780198501000,3700.0,0.0001,3]
[423532617,1780198599000,233.9137029,9.89e-05,7]
[423532620,1780198948000,150.0,0.00011233,120]
[423532637,1780199250000,1400.0,9.8e-05,3]
[423532638,1780199252000,2800.0,9.9e-05,3]
[423532639,1780199254000,4200.0,0.0001,3]
[423532640,1780199341000,1000.0,0.00028079,120]
[423532655,1780199431000,-2360.42,9.224e-05,2]
[423532644,1780199431000,-1000.0,9.026e-05,2]
[423532645,1780199431000,-450.04770829,9.069e-05,2]
[423532647,1780199431000,-1200.0,9.069e-05,2]
[423532646,1780199431000,-29.95229171,9.069e-05,2]
[423532648,1780199431000,-534.95343407,9.069e-05,2]
[423532649,1780199431000,-5263.13240145,9.07e-05,2]
[423532650,1780199431000,-24581.38759855,9.07e-05,2]
[423532656,1780199431000,-2000.0,9.238e-05,2]
[423532654,1780199431000,-364.57,9.224e-05,2]
[423532658,1780199431000,-200.0,9.305e-05,2]
[423532652,1780199431000,-500.0,9.127e-05,2]
[423532657,1780199431000,-1600.0,9.258e-05,2]
[423532659,1780199431000,-694.9,9.482e-05,2]
[423532661,1780199431000,-150.0,9.793e-05,2]
[423532662,1780199431000,-99269.5756,9.794e-05,2]
[423532660,1780199431000,-167.21,9.736e-05,2]
[423532664,1780199431000,-500.0,9.893e-05,2]
[423532663,1780199431000,-262.55859084,9.893e-05,2]
[423532666,1780199431000,-206.46353629,9.893e-05,2]
[423532665,1780199431000,-600.47684521,9.893e-05,2]
[423532682,1780199432000,-4995.0,9.95e-05,2]
[423532680,1780199432000,-4995.0,9.95e-05,2]
[423532678,1780199432000,-4995.0,9.95e-05,2]
[423532674,1780199432000,-500.0,9.929e-05,2]
[423532667,1780199432000,-500.0,9.893e-05,2]
[423532670,1780199432000,-500.0,9.893e-05,2]
[423532669,1780199432000,-500.0,9.893e-05,2]
[423532668,1780199432000,-335.88388777,9.893e-05,2]
[423532688,1780199432000,-4073.08,9.95e-05,2]
[423532676,1780199432000,-4995.0,9.95e-05,2]
[423532690,1780199432000,-1962.0,9.956e-05,2]
[423532672,1780199432000,-4062.72589649,9.896e-05,2]
[423532692,1780199432000,-917.0,9.976e-05,2]
[423532694,1780199432000,-1680.0,9.976e-05,2]
[423532684,1780199432000,-4995.0,9.95e-05,2]
[423532697,1780199432000,-1176.0,9.996e-05,2]
[423532698,1780199432000,-1002.50084792,9.999e-05,2]
[423532699,1780199432000,-1000.0,9.999e-05,2]
[423532701,1780199432000,-167856.20449948,0.0001,2]
[423532700,1780199432000,-506886.05712718,0.0001,2]
[423532704,1780199432000,-1254.41808677,0.0001,2]
[423532702,1780199432000,-113276.40125983,0.0001,2]
[423532703,1780199432000,-234967.24802244,0.0001,2]
[423532686,1780199432000,-2036.54,9.95e-05,2]
[423532705,1780199437000,-7657.64994,0.0001,2]
[423532734,1780199438000,-274.88,0.00010699,2]
[423532736,1780199438000,-274.88,0.00010755,2]
[423532737,1780199438000,-255.0,0.00010772,2]
[423532735,1780199438000,-126968.98218806,0.00010719,2]
[423532733,1780199438000,-274.88,0.00010643,2]
[423532738,1780199438000,-4000.0,0.00010779,2]
[423532739,1780199438000,-274.88,0.00010811,2]
[423532732,1780199438000,-274.88,0.00010587,2]
[423532740,1780199438000,-500.0,0.00010826,2]
[423532731,1780199438000,-500.0,0.00010552,2]
[423532741,1780199438000,-274.88,0.00010867,2]
[423532747,1780199438000,-150.0,0.00010959,2]
[423532744,1780199438000,-274.88,0.00010923,2]
[423532743,1780199438000,-27738.92981502,0.000109,2]
[423532745,1780199438000,-167.21,0.00010941,2]
[423532752,1780199438000,-4000.0,0.0001103,2]
[423532748,1780199438000,-150.0,0.00010959,2]
[423532746,1780199438000,-186.48,0.00010959,2]
[423532750,1780199438000,-274.88,0.00010979,2]
[423532749,1780199438000,-2351.0,0.00010974,2]
[423532751,1780199438000,-202.01,0.00010989,2]
[423532753,1780199438000,-274.88,0.00011034,2]
[423532742,1780199438000,-5600.0,0.000109,3]
[423532729,1780199438000,-274.88,0.00010532,2]
[423532713,1780199438000,-274.88,0.00010085,2]
[423532728,1780199438000,-4000.0,0.00010529,2]
[423532754,1780199438000,-274.88,0.0001109,2]
[423532706,1780199438000,-468102.0210643,0.0001,2]
[423532708,1780199438000,-163.57,0.0001,2]
[423532707,1780199438000,-518.22084683,0.0001,2]
[423532709,1780199438000,-360.57871465,0.0001,2]
[423532710,1780199438000,-194.27979737,0.0001,2]
[423532714,1780199438000,-167.21,0.00010138,2]
[423532712,1780199438000,-283.0,0.00010075,2]
[423532711,1780199438000,-4000.0,0.00010027,2]
[423532716,1780199438000,-274.88,0.00010196,2]
[423532730,1780199438000,-167.21,0.00010539,2]
[423532715,1780199438000,-274.88,0.00010141,2]
[423532720,1780199438000,-500.0,0.00010278,2]
[423532718,1780199438000,-209.17060647,0.00010263,2]
[423532719,1780199438000,-4000.0,0.00010278,2]
[423532721,1780199438000,-215.61611719,0.00010286,2]
[423532722,1780199438000,-274.88,0.00010308,2]
[423532725,1780199438000,-1600.0,0.00010416,2]
[423532726,1780199438000,-274.88,0.0001042,2]
[423532727,1780199438000,-274.88,0.00010476,2]
[423532723,1780199438000,-274.88,0.00010364,2]
[423532724,1780199438000,-2000.0,0.00010393,2]
[423532717,1780199438000,-274.88,0.00010252,2]
[423532756,1780199438000,-69340.02861741,0.00011099,2]
[423532784,1780199438000,-53647.48491466,0.00011821,2]
[423532760,1780199438000,-53647.48491471,0.00011099,2]
[423532787,1780199438000,-433.0,0.00011849,2]
[423532789,1780199438000,-500.0,0.00011922,2]
[423532790,1780199438000,-1680.36736524,0.00011969,2]
[423532792,1780199438000,-500.0,0.00012049,2]
[423532791,1780199438000,-250.0,0.00011983,2]
[423532793,1780199438000,-69340.02861734,0.0001205,2]
[423532795,1780199438000,-2986.26912,0.00012067,2]
[423532796,1780199438000,-3292.0,0.00012071,2]
[423532794,1780199438000,-40526.3,0.00012055,2]
[423532797,1780199438000,-500.0,0.00012196,2]
[423532785,1780199438000,-235.0,0.00011821,2]
[423532798,1780199438000,-479.71025978,0.00012277,2]
[423532799,1780199438000,-53647.48491466,0.00012313,2]
[423532804,1780199438000,-150.0,0.00012427,2]
[423532803,1780199438000,-150.0,0.00012427,2]
[423532805,1780199438000,-150.0,0.00012427,2]
[423532802,1780199438000,-150.0,0.00012427,2]
[423532800,1780199438000,-364.4,0.00012329,2]
[423532808,1780199438000,-150.0,0.00012496,2]
[423532809,1780199438000,-160.03,0.00012548,2]
[423532807,1780199438000,-500.0,0.0001247,2]
[423532758,1780199438000,-69340.02861734,0.00011099,2]
[423532801,1780199438000,-277.81451669,0.00012336,2]
[423532788,1780199438000,-160.03,0.00011921,2]
[423532806,1780199438000,-150.0,0.00012427,2]
[423532783,1780199438000,-1552.42142497,0.000118,2]
[423532761,1780199438000,-53647.48491466,0.00011099,2]
[423532786,1780199438000,-5991.040256,0.00011826,2]
[423532765,1780199438000,-150.0,0.00011233,2]
[423532766,1780199438000,-160.03,0.00011293,2]
[423532762,1780199438000,-53647.48491466,0.00011099,2]
[423532763,1780199438000,-500.0,0.000111,2]
[423532759,1780199438000,-69340.02861734,0.00011099,2]
[423532764,1780199438000,-274.88,0.00011146,2]
[423532768,1780199438000,-167.21,0.00011343,2]
[423532769,1780199438000,-500.0,0.00011374,2]
[423532770,1780199438000,-1669.00052443,0.00011473,2]
[423532767,1780199438000,-53647.48491466,0.00011328,2]
[423532778,1780199438000,-151.0,0.000115,2]
[423532782,1780199438000,-500.0,0.00011648,2]
[423532771,1780199438000,-204.34353215,0.00011473,2]
[423532774,1780199438000,-1188.276205,0.000115,2]
[423532777,1780199438000,-151.0,0.000115,2]
[423532772,1780199438000,-69340.02861734,0.000115,2]
[423532780,1780199438000,-2000.0,0.00011547,2]
[423532775,1780199438000,-1188.276205,0.000115,2]
[423532779,1780199438000,-151.0,0.000115,2]
[423532773,1780199438000,-1188.276205,0.000115,2]
[423532776,1780199438000,-1188.276205,0.000115,2]
[423532781,1780199438000,-1600.0,0.00011573,2]
[423532850,1780199439000,-592.45866025,0.00013363,2]
[423532855,1780199439000,-547.49,0.00013492,2]
[423532851,1780199439000,-150.0,0.00013394,2]
[423532857,1780199439000,-7414.622589,0.00013553,2]
[423532849,1780199439000,-150.0,0.00013348,2]
[423532853,1780199439000,-150.0,0.00013463,2]
[423532843,1780199439000,-150.0,0.00013256,2]
[423532846,1780199439000,-500.0,0.00013292,2]
[423532847,1780199439000,-53647.48491466,0.00013299,2]
[423532841,1780199439000,-160.03,0.00013175,2]
[423532852,1780199439000,-150.0,0.00013463,2]
[423532839,1780199439000,-69340.02861734,0.0001315,2]
[423532848,1780199439000,-150.0,0.00013325,2]
[423532854,1780199439000,-277.68664327,0.00013488,2]
[423532868,1780199439000,-500.0,0.00013698,2]
[423532858,1780199439000,-500.0,0.00013566,2]
[423532859,1780199439000,-17671.02185072,0.00013598,2]
[423532860,1780199439000,-150.0,0.00013601,2]
[423532861,1780199439000,-150.0,0.00013636,2]
[423532862,1780199439000,-150.0,0.0001367,2]
[423532863,1780199439000,-501.39680431,0.00013698,2]
[423532871,1780199439000,-500.0,0.00013698,2]
[423532865,1780199439000,-500.0,0.00013698,2]
[423532870,1780199439000,-500.0,0.00013698,2]
[423532866,1780199439000,-500.0,0.00013698,2]
[423532864,1780199439000,-500.22762284,0.00013698,2]
[423532869,1780199439000,-500.0,0.00013698,2]
[423532845,1780199439000,-150.0,0.0001329,2]
[423532856,1780199439000,-150.0,0.00013532,2]
[423532840,1780199439000,-500.0,0.00013151,2]
[423532811,1780199439000,-69340.02861734,0.000126,2]
[423532844,1780199439000,-4609.0,0.00013278,2]
[423532815,1780199439000,-2000.0,0.00012702,2]
[423532814,1780199439000,-27738.92981498,0.00012687,2]
[423532818,1780199439000,-151.0,0.00012733,2]
[423532810,1780199439000,-150.0,0.00012565,2]
[423532813,1780199439000,-150.0,0.00012635,2]
[423532812,1780199439000,-150.0,0.000126,2]
[423532816,1780199439000,-150.0,0.00012704,2]
[423532817,1780199439000,-1600.0,0.0001273,2]
[423532819,1780199439000,-151.0,0.00012733,2]
[423532821,1780199439000,-151.0,0.00012733,2]
[423532820,1780199439000,-151.0,0.00012733,2]
[423532830,1780199439000,-2360.42,0.00012913,2]
[423532826,1780199439000,-53647.48491466,0.00012806,2]
[423532867,1780199439000,-500.0,0.00013698,2]
[423532827,1780199439000,-150.0,0.00012842,2]
[423532832,1780199439000,-150.0,0.0001298,2]
[423532822,1780199439000,-500.0,0.00012744,2]
[423532825,1780199439000,-150.0,0.00012773,2]
[423532823,1780199439000,-4079.49263384,0.00012744,2]
[423532824,1780199439000,-150.0,0.00012773,2]
[423532829,1780199439000,-150.0,0.00012911,2]
[423532828,1780199439000,-150.0,0.00012888,2]
[423532831,1780199439000,-150.0,0.00012945,2]
[423532833,1780199439000,-500.0,0.00013018,2]
[423532835,1780199439000,-150.0,0.00013049,2]
[423532834,1780199439000,-736.0,0.00013034,2]
[423532838,1780199439000,-150.0,0.00013118,2]
[423532837,1780199439000,-150.0,0.00013118,2]
[423532836,1780199439000,-150.0,0.00013118,2]
[423532842,1780199439000,-150.0,0.00013187,2]
[423532873,1780199439000,-176.47630635,0.00013698,2]
[423532925,1780199439000,-500.0,0.00013698,2]
[423532874,1780199439000,-500.0,0.00013698,2]
[423532905,1780199439000,-503.76692938,0.00013698,2]
[423532912,1780199439000,-500.0,0.00013698,2]
[423532911,1780199439000,-500.0,0.00013698,2]
[423532914,1780199439000,-509.97,0.00013698,2]
[423532913,1780199439000,-500.0,0.00013698,2]
[423532916,1780199439000,-509.97,0.00013698,2]
[423532915,1780199439000,-509.97,0.00013698,2]
[423532917,1780199439000,-500.0,0.00013698,2]
[423532918,1780199439000,-509.97,0.00013698,2]
[423532922,1780199439000,-509.97,0.00013698,2]
[423532920,1780199439000,-509.97,0.00013698,2]
[423532919,1780199439000,-500.0,0.00013698,2]
[423532921,1780199439000,-500.0,0.00013698,2]
[423532910,1780199439000,-500.0,0.00013698,2]
[423532924,1780199439000,-509.97,0.00013698,2]
[423532927,1780199439000,-500.0,0.00013698,2]
[423532926,1780199439000,-509.97,0.00013698,2]
[423532929,1780199439000,-500.0,0.00013698,2]
[423532928,1780199439000,-509.97,0.00013698,2]
[423532930,1780199439000,-509.97,0.00013698,2]
[423532931,1780199439000,-500.0,0.00013698,2]
[423532932,1780199439000,-509.97,0.00013698,2]